[Event "Early-Titled-Tuesday-Blitz-May-28-2024"]
[Site "Chess.com"]
[Date "2024.05.28"]
[Round "11"]
[White "FLYD"]
[Black "Qvalda"]
[Result "0-1"]
[WhiteElo "2090"]
[BlackElo "2407"]
[TimeControl "180+1"]
[EndTime "10:09:14 PDT"]
[Termination "Qvalda won by checkmate"]

1. e4 {[%clk 0:03:00.9]} 1... d5 {[%clk 0:02:47.4]} 2. exd5 {[%clk 0:03:00.2]}
2... Qxd5 {[%clk 0:02:48.3]} 3. Nc3 {[%clk 0:03:00.1]} 3... Qd8 {[%clk
0:02:44.3]} 4. d4 {[%clk 0:03:00.3]} 4... Nf6 {[%clk 0:02:44]} 5. Nf3 {[%clk
0:03:00.5]} 5... g6 {[%clk 0:02:44]} 6. Bc4 {[%clk 0:02:59.8]} 6... Bg7 {[%clk
0:02:43.7]} 7. O-O {[%clk 0:02:59.9]} 7... O-O {[%clk 0:02:44.2]} 8. Bf4 {[%clk
0:02:59.6]} 8... Bg4 {[%clk 0:02:43.3]} 9. Bb3 {[%clk 0:02:53.3]} 9... Nc6
{[%clk 0:02:36]} 10. d5 {[%clk 0:02:52.2]} 10... Bxf3 {[%clk 0:02:34.8]} 11.
Qxf3 {[%clk 0:02:48.3]} 11... Nd4 {[%clk 0:02:34.9]} 12. Qd3 {[%clk 0:02:47.2]}
12... c5 {[%clk 0:02:31.8]} 13. dxc6 {[%clk 0:02:43.6]} 13... Nxc6 {[%clk
0:02:31.5]} 14. Rad1 {[%clk 0:02:29.7]} 14... Qa5 {[%clk 0:02:15.3]} 15. Qf3
{[%clk 0:02:23]} 15... e6 {[%clk 0:02:06.2]} 16. Rfe1 {[%clk 0:02:12.2]} 16...
a6 {[%clk 0:01:47.2]} 17. h4 {[%clk 0:02:00.9]} 17... h5 {[%clk 0:01:41.7]} 18.
Bg5 {[%clk 0:02:00.1]} 18... Ng4 {[%clk 0:01:39.1]} 19. Qe2 {[%clk 0:01:54.2]}
19... Nd4 {[%clk 0:01:35.8]} 20. Qe4 {[%clk 0:01:50.9]} 20... Nxb3 {[%clk
0:01:33.2]} 21. axb3 {[%clk 0:01:49.7]} 21... Qc7 {[%clk 0:01:14.5]} 22. g3
{[%clk 0:01:47.4]} 22... Rac8 {[%clk 0:00:42]} 23. Re2 {[%clk 0:01:41.6]} 23...
Qc6 {[%clk 0:00:34]} 24. Qd3 {[%clk 0:01:28.7]} 24... Ne5 {[%clk 0:00:29.6]} 25.
Qe4 {[%clk 0:01:18.3]} 25... Nf3+ {[%clk 0:00:23.6]} 26. Kg2 {[%clk 0:01:17.2]}
26... Nxg5 {[%clk 0:00:20]} 27. hxg5 {[%clk 0:01:15]} 27... Bxc3 {[%clk
0:00:19.8]} 28. bxc3 {[%clk 0:01:14.8]} 28... Qxe4+ {[%clk 0:00:19.3]} 29. Rxe4
{[%clk 0:01:14.3]} 29... Rxc3 {[%clk 0:00:19.9]} 30. Rd7 {[%clk 0:01:11.6]}
30... Rxc2 {[%clk 0:00:08.7]} 31. Rxb7 {[%clk 0:01:11.8]} 31... Rfc8 {[%clk
0:00:08.1]} 32. Ra7 {[%clk 0:01:09.9]} 32... R8c6 {[%clk 0:00:07.4]} 33. Rf4
{[%clk 0:01:08.9]} 33... Rc7 {[%clk 0:00:04.1]} 34. Rxa6 {[%clk 0:01:09.3]}
34... R2c5 {[%clk 0:00:04.3]} 35. Rd4 {[%clk 0:00:47.2]} 35... Rxg5 {[%clk
0:00:03.7]} 36. Rd8+ {[%clk 0:00:47.4]} 36... Kg7 {[%clk 0:00:04.2]} 37. b4
{[%clk 0:00:47.8]} 37... Rb5 {[%clk 0:00:04]} 38. Rd4 {[%clk 0:00:45.5]} 38...
Rcb7 {[%clk 0:00:03]} 39. Ra4 {[%clk 0:00:44.9]} 39... Kf6 {[%clk 0:00:03.1]}
40. Kf3 {[%clk 0:00:44.1]} 40... Ke5 {[%clk 0:00:03.3]} 41. Ke3 {[%clk
0:00:43.8]} 41... f5 {[%clk 0:00:02.5]} 42. f4+ {[%clk 0:00:39.6]} 42... Kf6
{[%clk 0:00:02.3]} 43. Rc4 {[%clk 0:00:39.9]} 43... Kf7 {[%clk 0:00:02.2]} 44.
Kd3 {[%clk 0:00:40.1]} 44... Rd7+ {[%clk 0:00:01.1]} 45. Kc3 {[%clk 0:00:40.5]}
45... Rd1 {[%clk 0:00:01]} 46. Rc7+ {[%clk 0:00:39.6]} 46... Kf6 {[%clk
0:00:01.3]} 47. Rc6 {[%clk 0:00:39.9]} 47... Rc1+ {[%clk 0:00:01]} 48. Kd3
{[%clk 0:00:37.6]} 48... Rxc6 {[%clk 0:00:01.9]} 49. Kd2 {[%clk 0:00:38.5]}
49... Rd6+ {[%clk 0:00:02.1]} 50. Ke2 {[%clk 0:00:39.4]} 50... Rdb6 {[%clk
0:00:02.4]} 51. Kf2 {[%clk 0:00:40.3]} 51... Rxb4 {[%clk 0:00:02.9]} 52. Kg2
{[%clk 0:00:41.2]} 52... Rxa4 {[%clk 0:00:03.1]} 53. Kh3 {[%clk 0:00:42.1]}
53... Ra3 {[%clk 0:00:03.4]} 54. Kh2 {[%clk 0:00:43]} 54... Rb4 {[%clk
0:00:03.8]} 55. Kh3 {[%clk 0:00:43.9]} 55... Rc4 {[%clk 0:00:04.4]} 56. Kh2
{[%clk 0:00:44.8]} 56... Rd4 {[%clk 0:00:04.9]} 57. Kh3 {[%clk 0:00:45.7]} 57...
Rdd3 {[%clk 0:00:05.2]} 58. Kh2 {[%clk 0:00:46.6]} 58... Rxg3 {[%clk 0:00:05.3]}
59. Kh1 {[%clk 0:00:47.5]} 59... Rgb3 {[%clk 0:00:05.7]} 60. Kg2 {[%clk
0:00:47.9]} 60... Rb2+ {[%clk 0:00:06.1]} 61. Kg1 {[%clk 0:00:48.8]} 61... Ra1#
{[%clk 0:00:06.6]} 0-1

[Event "Early-Titled-Tuesday-Blitz-May-28-2024"]
[Site "Chess.com"]
[Date "2024.05.28"]
[Round "11"]
[White "jk13"]
[Black "scarabee43"]
[Result "0-1"]
[WhiteElo "2674"]
[BlackElo "2837"]
[TimeControl "180+1"]
[EndTime "10:09:15 PDT"]
[Termination "scarabee43 won by checkmate"]

1. e4 {[%clk 0:02:57.3]} 1... c5 {[%clk 0:02:59.7]} 2. c3 {[%clk 0:02:56.6]}
2... d5 {[%clk 0:02:58.6]} 3. exd5 {[%clk 0:02:57.2]} 3... Qxd5 {[%clk 0:02:59]}
4. d4 {[%clk 0:02:58]} 4... Nf6 {[%clk 0:02:59.6]} 5. Nf3 {[%clk 0:02:58.6]}
5... e6 {[%clk 0:02:59.8]} 6. Na3 {[%clk 0:02:58.7]} 6... Nc6 {[%clk 0:02:58.1]}
7. Be3 {[%clk 0:02:58.2]} 7... cxd4 {[%clk 0:02:54.9]} 8. Nb5 {[%clk 0:02:58.8]}
8... Qd7 {[%clk 0:02:54.7]} 9. Nbxd4 {[%clk 0:02:59.5]} 9... Be7 {[%clk
0:02:50.5]} 10. Bb5 {[%clk 0:02:54.4]} 10... Qc7 {[%clk 0:02:42]} 11. Qa4 {[%clk
0:02:18.3]} 11... Bd7 {[%clk 0:02:41.3]} 12. O-O-O {[%clk 0:02:12.3]} 12... O-O
{[%clk 0:02:36.5]} 13. Rhe1 {[%clk 0:01:49.7]} 13... Nd5 {[%clk 0:02:28.3]} 14.
Kb1 {[%clk 0:01:39.7]} 14... a6 {[%clk 0:02:22.8]} 15. Nxc6 {[%clk 0:01:26.5]}
15... bxc6 {[%clk 0:02:04.6]} 16. Bd3 {[%clk 0:01:13.9]} 16... Rab8 {[%clk
0:01:56.9]} 17. Ka1 {[%clk 0:01:12.7]} 17... c5 {[%clk 0:01:51.2]} 18. Qe4
{[%clk 0:01:04.5]} 18... Nf6 {[%clk 0:01:50.9]} 19. Qh4 {[%clk 0:01:03.9]} 19...
Bb5 {[%clk 0:01:28]} 20. Bf4 {[%clk 0:00:45.2]} 20... Qa5 {[%clk 0:01:18.6]} 21.
Bxb8 {[%clk 0:00:43.1]} 21... Rxb8 {[%clk 0:01:19.2]} 22. Bb1 {[%clk 0:00:40.2]}
22... Ba4 {[%clk 0:00:55.2]} 23. Rd2 {[%clk 0:00:35.4]} 23... Bc6 {[%clk
0:00:55.7]} 24. Ne5 {[%clk 0:00:30.3]} 24... Bd5 {[%clk 0:00:55.4]} 25. Red1
{[%clk 0:00:23.5]} 25... Qc7 {[%clk 0:00:49]} 26. f4 {[%clk 0:00:20.8]} 26... h6
{[%clk 0:00:47.3]} 27. Qf2 {[%clk 0:00:19.1]} 27... Bd6 {[%clk 0:00:43.1]} 28.
c4 {[%clk 0:00:16.6]} 28... Bxe5 {[%clk 0:00:41.5]} 29. fxe5 {[%clk 0:00:16.9]}
29... Ne4 {[%clk 0:00:28.1]} 30. Bxe4 {[%clk 0:00:15.9]} 30... Bxe4 {[%clk
0:00:28.8]} 31. Rd7 {[%clk 0:00:15.7]} 31... Qxe5 {[%clk 0:00:29.5]} 32. Qxf7+
{[%clk 0:00:15.6]} 32... Kh7 {[%clk 0:00:30]} 33. Qf2 {[%clk 0:00:15.1]} 33...
Bf5 {[%clk 0:00:24.8]} 34. h3 {[%clk 0:00:14.4]} 34... a5 {[%clk 0:00:23.6]} 35.
a3 {[%clk 0:00:13.6]} 35... Rb3 {[%clk 0:00:22.8]} 36. Ka2 {[%clk 0:00:13.1]}
36... Re3 {[%clk 0:00:23]} 37. R1d2 {[%clk 0:00:13.2]} 37... Re1 {[%clk
0:00:22.4]} 38. g4 {[%clk 0:00:12.9]} 38... Bb1+ {[%clk 0:00:22.3]} 39. Kb3
{[%clk 0:00:13.5]} 39... Be4 {[%clk 0:00:19.4]} 40. Ka2 {[%clk 0:00:09.7]} 40...
Bb1+ {[%clk 0:00:18.8]} 41. Kb3 {[%clk 0:00:10.1]} 41... Be4 {[%clk 0:00:19.1]}
42. Ra7 {[%clk 0:00:07.9]} 42... Qb8+ {[%clk 0:00:18]} 43. Ka2 {[%clk
0:00:07.1]} 43... Bb1+ {[%clk 0:00:17.9]} 44. Ka1 {[%clk 0:00:07]} 44... Rh1
{[%clk 0:00:16.8]} 45. Rdd7 {[%clk 0:00:04.9]} 45... Bc2+ {[%clk 0:00:16.7]} 46.
Ka2 {[%clk 0:00:04.1]} 46... Qb3# {[%clk 0:00:16.9]} 0-1

[Event "Early-Titled-Tuesday-Blitz-May-28-2024"]
[Site "Chess.com"]
[Date "2024.05.28"]
[Round "11"]
[White "BarloNadera"]
[Black "IMRosen"]
[Result "0-1"]
[WhiteElo "2114"]
[BlackElo "2710"]
[TimeControl "180+1"]
[EndTime "10:09:17 PDT"]
[Termination "IMRosen won on time"]

1. d4 {[%clk 0:03:00.9]} 1... d5 {[%clk 0:03:00]} 2. Nf3 {[%clk 0:02:59.6]} 2...
Nf6 {[%clk 0:02:59.9]} 3. c4 {[%clk 0:02:59.3]} 3... e6 {[%clk 0:02:55.5]} 4.
Bg5 {[%clk 0:02:58]} 4... c6 {[%clk 0:02:50.5]} 5. Qc2 {[%clk 0:02:56.9]} 5...
Nbd7 {[%clk 0:02:50.9]} 6. e3 {[%clk 0:02:55.8]} 6... Qa5+ {[%clk 0:02:48]} 7.
Nfd2 {[%clk 0:02:45]} 7... Ne4 {[%clk 0:02:43.3]} 8. Bh4 {[%clk 0:02:43.4]} 8...
g5 {[%clk 0:02:38.6]} 9. Bg3 {[%clk 0:02:40.1]} 9... h5 {[%clk 0:02:39.3]} 10.
f3 {[%clk 0:02:36.4]} 10... Nxg3 {[%clk 0:02:39.2]} 11. hxg3 {[%clk 0:02:35.9]}
11... Bd6 {[%clk 0:02:39.7]} 12. f4 {[%clk 0:02:32.7]} 12... Nf6 {[%clk
0:02:32.2]} 13. Nc3 {[%clk 0:02:30.7]} 13... Ng4 {[%clk 0:02:28.4]} 14. Qd3
{[%clk 0:02:21.4]} 14... b6 {[%clk 0:02:12.1]} 15. Be2 {[%clk 0:02:07.6]} 15...
Nf6 {[%clk 0:01:40.3]} 16. a3 {[%clk 0:01:51.4]} 16... Ba6 {[%clk 0:01:14.3]}
17. Qc2 {[%clk 0:01:50]} 17... dxc4 {[%clk 0:01:10.2]} 18. Bxc4 {[%clk
0:01:44.1]} 18... b5 {[%clk 0:00:58.2]} 19. Be2 {[%clk 0:01:38.4]} 19... b4
{[%clk 0:00:44.8]} 20. Nb3 {[%clk 0:01:33.8]} 20... Qb6 {[%clk 0:00:44.7]} 21.
Bxa6 {[%clk 0:01:23.7]} 21... bxc3 {[%clk 0:00:44.1]} 22. Be2 {[%clk 0:01:17.5]}
22... cxb2 {[%clk 0:00:44]} 23. Qxb2 {[%clk 0:01:15.3]} 23... Rb8 {[%clk
0:00:44.7]} 24. Rb1 {[%clk 0:01:14.5]} 24... Ne4 {[%clk 0:00:33.5]} 25. Rxh5
{[%clk 0:00:59.8]} 25... Rxh5 {[%clk 0:00:28.2]} 26. Bxh5 {[%clk 0:00:59.2]}
26... Nxg3 {[%clk 0:00:28.8]} 27. Bf3 {[%clk 0:00:56.9]} 27... gxf4 {[%clk
0:00:28.8]} 28. e4 {[%clk 0:00:55.7]} 28... a5 {[%clk 0:00:20.8]} 29. Qc2 {[%clk
0:00:45.4]} 29... a4 {[%clk 0:00:15.6]} 30. Nd2 {[%clk 0:00:44]} 30... Qxd4
{[%clk 0:00:14.2]} 31. Qxc6+ {[%clk 0:00:35.4]} 31... Kf8 {[%clk 0:00:09.4]} 32.
Rxb8+ {[%clk 0:00:34]} 32... Bxb8 {[%clk 0:00:10.3]} 33. Kd1 {[%clk 0:00:23.2]}
33... Be5 {[%clk 0:00:06]} 34. Qb5 {[%clk 0:00:15.6]} 34... Qa1+ {[%clk
0:00:05]} 35. Kc2 {[%clk 0:00:15.3]} 35... Qc3+ {[%clk 0:00:05]} 36. Kd1 {[%clk
0:00:14.4]} 36... Kg7 {[%clk 0:00:05.1]} 37. Qb1 {[%clk 0:00:02.1]} 37... Qd4
{[%clk 0:00:04.4]} 0-1

[Event "Early-Titled-Tuesday-Blitz-May-28-2024"]
[Site "Chess.com"]
[Date "2024.05.28"]
[Round "11"]
[White "Nekoo04"]
[Black "Sofia_Blokhin"]
[Result "1-0"]
[WhiteElo "2418"]
[BlackElo "2253"]
[TimeControl "180+1"]
[EndTime "10:09:23 PDT"]
[Termination "Nekoo04 won on time"]

1. d4 {[%clk 0:02:35.5]} 1... f5 {[%clk 0:02:58.6]} 2. e4 {[%clk 0:02:33.3]}
2... fxe4 {[%clk 0:02:57.8]} 3. Nc3 {[%clk 0:02:34]} 3... Nf6 {[%clk 0:02:57.2]}
4. f3 {[%clk 0:02:34.5]} 4... exf3 {[%clk 0:02:54.5]} 5. Nxf3 {[%clk 0:02:34.4]}
5... e6 {[%clk 0:02:54.4]} 6. Bd3 {[%clk 0:02:34.6]} 6... Be7 {[%clk 0:02:53]}
7. O-O {[%clk 0:02:35]} 7... O-O {[%clk 0:02:50.9]} 8. Bg5 {[%clk 0:02:35]} 8...
Nc6 {[%clk 0:02:47.4]} 9. Qe2 {[%clk 0:02:27.1]} 9... Qe8 {[%clk 0:02:42.2]} 10.
Ne4 {[%clk 0:02:14.5]} 10... Qh5 {[%clk 0:02:31.3]} 11. Ng3 {[%clk 0:01:50.1]}
11... Qg4 {[%clk 0:02:18.1]} 12. c3 {[%clk 0:01:12.3]} 12... b6 {[%clk
0:02:00.5]} 13. Qe1 {[%clk 0:00:39.5]} 13... Bd6 {[%clk 0:01:45.8]} 14. Bxf6
{[%clk 0:00:29.3]} 14... Bxg3 {[%clk 0:01:37.7]} 15. hxg3 {[%clk 0:00:29.3]}
15... Rxf6 {[%clk 0:01:36.1]} 16. Qd2 {[%clk 0:00:15]} 16... Qxg3 {[%clk
0:01:29.2]} 17. Ng5 {[%clk 0:00:14.6]} 17... Rh6 {[%clk 0:00:58.5]} 18. Bxh7+
{[%clk 0:00:11]} 18... Rxh7 {[%clk 0:00:58.7]} 19. Nxh7 {[%clk 0:00:11.4]} 19...
Kxh7 {[%clk 0:00:59]} 20. Rf3 {[%clk 0:00:11.8]} 20... Qg6 {[%clk 0:00:46.5]}
21. Raf1 {[%clk 0:00:09.7]} 21... Ba6 {[%clk 0:00:41.8]} 22. Rh3+ {[%clk
0:00:09.1]} 22... Kg8 {[%clk 0:00:41.3]} 23. Rff3 {[%clk 0:00:09.6]} 23... Rf8
{[%clk 0:00:37.2]} 24. Rxf8+ {[%clk 0:00:08.3]} 24... Kxf8 {[%clk 0:00:35.9]}
25. Rh8+ {[%clk 0:00:09.2]} 25... Ke7 {[%clk 0:00:34.1]} 26. Qf4 {[%clk
0:00:09]} 26... Qf6 {[%clk 0:00:25.3]} 27. Qxc7 {[%clk 0:00:08.4]} 27... e5
{[%clk 0:00:07.6]} 28. d5 {[%clk 0:00:08.2]} 28... Qf1+ {[%clk 0:00:05.8]} 29.
Kh2 {[%clk 0:00:08.3]} 29... Qf4+ {[%clk 0:00:06.1]} 30. Kh1 {[%clk 0:00:07.4]}
30... Qf1+ {[%clk 0:00:05.8]} 31. Kh2 {[%clk 0:00:07.5]} 31... Qf4+ {[%clk
0:00:06.1]} 32. Kh3 {[%clk 0:00:05.3]} 32... Qf5+ {[%clk 0:00:04.4]} 33. Kh4
{[%clk 0:00:02.3]} 33... g5+ {[%clk 0:00:04.2]} 34. Kh5 {[%clk 0:00:01.3]} 34...
Qf7+ {[%clk 0:00:02.1]} 35. Kg4 {[%clk 0:00:01]} 35... Qf3+ {[%clk 0:00:00.9]}
36. Kxg5 {[%clk 0:00:00.4]} 1-0

[Event "Early-Titled-Tuesday-Blitz-May-28-2024"]
[Site "Chess.com"]
[Date "2024.05.28"]
[Round "11"]
[White "Shuvalov"]
[Black "MaxLeto"]
[Result "1-0"]
[WhiteElo "2555"]
[BlackElo "2385"]
[TimeControl "180+1"]
[EndTime "10:09:24 PDT"]
[Termination "Shuvalov won on time"]

1. d4 {[%clk 0:03:00.9]} 1... a6 {[%clk 0:03:00.3]} 2. e4 {[%clk 0:03:00.1]}
2... b6 {[%clk 0:03:01.2]} 3. c4 {[%clk 0:02:57.7]} 3... c6 {[%clk 0:03:02.1]}
4. Nc3 {[%clk 0:02:57.4]} 4... d6 {[%clk 0:03:03]} 5. Nf3 {[%clk 0:02:57.4]}
5... e6 {[%clk 0:03:03.9]} 6. Be2 {[%clk 0:02:53.9]} 6... f6 {[%clk 0:03:04.7]}
7. O-O {[%clk 0:02:53.6]} 7... g6 {[%clk 0:03:05.4]} 8. Be3 {[%clk 0:02:52.5]}
8... h6 {[%clk 0:03:06]} 9. Qc2 {[%clk 0:02:51.7]} 9... Ne7 {[%clk 0:03:05.9]}
10. Rad1 {[%clk 0:02:50.4]} 10... Bg7 {[%clk 0:03:04.6]} 11. Rfe1 {[%clk
0:02:50.1]} 11... O-O {[%clk 0:03:00.2]} 12. Bf1 {[%clk 0:02:49.7]} 12... Qe8
{[%clk 0:02:47.6]} 13. h3 {[%clk 0:02:48.9]} 13... Bb7 {[%clk 0:02:29.5]} 14. g3
{[%clk 0:02:48]} 14... Nd7 {[%clk 0:02:23.7]} 15. Bg2 {[%clk 0:02:48.1]} 15...
Rd8 {[%clk 0:02:23.1]} 16. Bc1 {[%clk 0:02:46.6]} 16... g5 {[%clk 0:02:21.9]}
17. d5 {[%clk 0:02:38.1]} 17... cxd5 {[%clk 0:02:14.1]} 18. exd5 {[%clk
0:02:37.2]} 18... e5 {[%clk 0:02:13.6]} 19. b4 {[%clk 0:02:19.5]} 19... f5
{[%clk 0:02:10.4]} 20. Qb3 {[%clk 0:02:16.4]} 20... Qg6 {[%clk 0:02:00.3]} 21.
Ba3 {[%clk 0:02:00.4]} 21... Rb8 {[%clk 0:01:32.4]} 22. Qa4 {[%clk 0:01:38]}
22... Rfd8 {[%clk 0:01:23.9]} 23. b5 {[%clk 0:01:20.1]} 23... a5 {[%clk
0:01:18]} 24. Qc2 {[%clk 0:01:15.3]} 24... Rbc8 {[%clk 0:00:54.1]} 25. Qe2
{[%clk 0:01:12.4]} 25... Rc7 {[%clk 0:00:37]} 26. Na4 {[%clk 0:01:10.8]} 26...
Rdc8 {[%clk 0:00:36.5]} 27. Rc1 {[%clk 0:01:08.1]} 27... e4 {[%clk 0:00:35.5]}
28. Nd2 {[%clk 0:01:03]} 28... Rf8 {[%clk 0:00:15.5]} 29. g4 {[%clk 0:00:59.2]}
29... Re8 {[%clk 0:00:02.8]} 30. gxf5 {[%clk 0:00:56.5]} 30... Nxf5 {[%clk
0:00:03.7]} 31. Bxe4 {[%clk 0:00:51.3]} 31... Ne5 {[%clk 0:00:02.3]} 32. Qf1
{[%clk 0:00:36.1]} 32... Rf7 {[%clk 0:00:02.5]} 33. Qg2 {[%clk 0:00:33.5]} 33...
Qh5 {[%clk 0:00:02.2]} 34. Bxf5 {[%clk 0:00:27.9]} 34... Rxf5 {[%clk 0:00:03.1]}
35. Bxd6 {[%clk 0:00:28.4]} 35... Ng6 {[%clk 0:00:03.2]} 36. Rxe8+ {[%clk
0:00:24.7]} 36... Kh7 {[%clk 0:00:01.9]} 37. Rce1 {[%clk 0:00:23.3]} 37... Nh4
{[%clk 0:00:01.5]} 38. Qg4 {[%clk 0:00:21.2]} 38... Qg6 {[%clk 0:00:01]} 39.
R1e6 {[%clk 0:00:19.3]} 39... Qf7 {[%clk 0:00:01.6]} 40. R6e7 {[%clk 0:00:18.4]}
40... Qf6 {[%clk 0:00:01.7]} 41. Be5 {[%clk 0:00:16.1]} 41... Qxe5 {[%clk
0:00:01]} 42. Rxe5 {[%clk 0:00:17]} 42... Rxe5 {[%clk 0:00:01.2]} 43. Rxe5
{[%clk 0:00:16.5]} 43... Bxe5 {[%clk 0:00:02.1]} 44. Qd7+ {[%clk 0:00:16.2]}
44... Kg6 {[%clk 0:00:01.6]} 45. Qxb7 {[%clk 0:00:16.3]} 1-0

[Event "Early-Titled-Tuesday-Blitz-May-28-2024"]
[Site "Chess.com"]
[Date "2024.05.28"]
[Round "11"]
[White "alreadybroken23"]
[Black "Dubs123"]
[Result "1-0"]
[WhiteElo "2602"]
[BlackElo "2459"]
[TimeControl "180+1"]
[EndTime "10:09:26 PDT"]
[Termination "alreadybroken23 won by checkmate"]

1. e4 {[%clk 0:03:00.9]} 1... c5 {[%clk 0:02:52.6]} 2. Nf3 {[%clk 0:02:59.9]}
2... d6 {[%clk 0:02:52.8]} 3. d4 {[%clk 0:02:58.6]} 3... cxd4 {[%clk 0:02:53.7]}
4. Nxd4 {[%clk 0:02:58.2]} 4... Nf6 {[%clk 0:02:53.8]} 5. Nc3 {[%clk 0:02:58.6]}
5... a6 {[%clk 0:02:54.2]} 6. Be3 {[%clk 0:02:57.5]} 6... e5 {[%clk 0:02:53.6]}
7. Nb3 {[%clk 0:02:58.1]} 7... Be7 {[%clk 0:02:53.7]} 8. h3 {[%clk 0:02:56.5]}
8... h5 {[%clk 0:02:51.4]} 9. f4 {[%clk 0:02:56.1]} 9... Nc6 {[%clk 0:02:44]}
10. Qd2 {[%clk 0:02:54.4]} 10... Be6 {[%clk 0:02:39]} 11. O-O-O {[%clk
0:02:48.3]} 11... Rc8 {[%clk 0:02:38.4]} 12. f5 {[%clk 0:02:46.7]} 12... Bd7
{[%clk 0:02:27.2]} 13. Bg5 {[%clk 0:02:43.6]} 13... b5 {[%clk 0:02:18.5]} 14.
Bxf6 {[%clk 0:02:42.2]} 14... gxf6 {[%clk 0:02:18.2]} 15. Kb1 {[%clk 0:02:42.6]}
15... Nb4 {[%clk 0:02:11.7]} 16. a3 {[%clk 0:02:41.4]} 16... Nc6 {[%clk
0:02:09.3]} 17. Nd5 {[%clk 0:02:41.6]} 17... Bf8 {[%clk 0:02:04.9]} 18. Be2
{[%clk 0:02:34.2]} 18... Bh6 {[%clk 0:01:54.9]} 19. Qe1 {[%clk 0:02:33.8]} 19...
Bg7 {[%clk 0:01:42.4]} 20. g4 {[%clk 0:02:28.5]} 20... Ne7 {[%clk 0:01:39]} 21.
Qb4 {[%clk 0:02:21.9]} 21... Nxd5 {[%clk 0:01:36]} 22. Rxd5 {[%clk 0:02:22.8]}
22... Bc6 {[%clk 0:01:28.6]} 23. Rxd6 {[%clk 0:02:21.6]} 23... Qc7 {[%clk
0:01:28.2]} 24. Na5 {[%clk 0:01:22.6]} 24... Ba8 {[%clk 0:01:17.4]} 25. Ka2
{[%clk 0:00:17.1]} 25... Bf8 {[%clk 0:01:10]} 26. Bxb5+ {[%clk 0:00:17]} 26...
axb5 {[%clk 0:01:05.4]} 27. Qxb5+ {[%clk 0:00:17.9]} 27... Ke7 {[%clk
0:00:58.9]} 28. Rhd1 {[%clk 0:00:08.9]} 28... Qxd6 {[%clk 0:00:46.8]} 29. Rxd6
{[%clk 0:00:09.8]} 29... Kxd6 {[%clk 0:00:47.3]} 30. Qa6+ {[%clk 0:00:08.7]}
30... Kc7 {[%clk 0:00:29.4]} 31. Qa7+ {[%clk 0:00:08.9]} 31... Kd8 {[%clk
0:00:20.5]} 32. Qxf7 {[%clk 0:00:09.4]} 32... Be7 {[%clk 0:00:18.9]} 33. c4
{[%clk 0:00:04.6]} 33... Bxe4 {[%clk 0:00:18.4]} 34. Qe6 {[%clk 0:00:02.7]}
34... hxg4 {[%clk 0:00:16.8]} 35. hxg4 {[%clk 0:00:03.6]} 35... Ke8 {[%clk
0:00:13.2]} 36. g5 {[%clk 0:00:03.9]} 36... Kd8 {[%clk 0:00:06.6]} 37. gxf6
{[%clk 0:00:04.1]} 37... Bc5 {[%clk 0:00:04.6]} 38. Qxe5 {[%clk 0:00:04.4]}
38... Bc6 {[%clk 0:00:04.3]} 39. Qxc5 {[%clk 0:00:03.3]} 39... Bd7 {[%clk
0:00:04.8]} 40. Nb7+ {[%clk 0:00:01.7]} 40... Ke8 {[%clk 0:00:04.4]} 41. Qe7#
{[%clk 0:00:02.6]} 1-0

[Event "Early-Titled-Tuesday-Blitz-May-28-2024"]
[Site "Chess.com"]
[Date "2024.05.28"]
[Round "11"]
[White "ljuks68"]
[Black "Kunalm64"]
[Result "0-1"]
[WhiteElo "2444"]
[BlackElo "2673"]
[TimeControl "180+1"]
[EndTime "10:09:30 PDT"]
[Termination "Kunalm64 won on time"]

1. e4 {[%clk 0:02:55.5]} 1... c6 {[%clk 0:03:00.1]} 2. d4 {[%clk 0:02:55.3]}
2... d5 {[%clk 0:03:00.8]} 3. e5 {[%clk 0:02:55.9]} 3... Bf5 {[%clk 0:03:00.4]}
4. Nd2 {[%clk 0:02:56]} 4... e6 {[%clk 0:02:57.9]} 5. Nb3 {[%clk 0:02:56.1]}
5... c5 {[%clk 0:02:58.4]} 6. dxc5 {[%clk 0:02:56.2]} 6... Bxc5 {[%clk
0:02:58.8]} 7. Nxc5 {[%clk 0:02:54]} 7... Qa5+ {[%clk 0:02:59.4]} 8. c3 {[%clk
0:02:53.7]} 8... Qxc5 {[%clk 0:02:59.9]} 9. Nf3 {[%clk 0:02:50.8]} 9... Ne7
{[%clk 0:02:54.6]} 10. Be3 {[%clk 0:02:47.9]} 10... Qc7 {[%clk 0:02:54.1]} 11.
Nd4 {[%clk 0:02:48]} 11... a6 {[%clk 0:02:51.9]} 12. f4 {[%clk 0:02:46.4]} 12...
Nbc6 {[%clk 0:02:48.8]} 13. Be2 {[%clk 0:02:43.8]} 13... O-O {[%clk 0:02:43.8]}
14. O-O {[%clk 0:02:40.8]} 14... Be4 {[%clk 0:02:38.1]} 15. Bf3 {[%clk
0:02:34.4]} 15... Nxd4 {[%clk 0:02:37.9]} 16. Bxd4 {[%clk 0:02:34.5]} 16... Bxf3
{[%clk 0:02:37.3]} 17. Qxf3 {[%clk 0:02:34.2]} 17... Nf5 {[%clk 0:02:24.3]} 18.
Bf2 {[%clk 0:02:33]} 18... Rad8 {[%clk 0:02:18.6]} 19. a4 {[%clk 0:02:20.7]}
19... Qc4 {[%clk 0:02:14.8]} 20. a5 {[%clk 0:02:12]} 20... Rc8 {[%clk 0:02:00]}
21. g4 {[%clk 0:02:01.1]} 21... Ne7 {[%clk 0:01:57.3]} 22. f5 {[%clk 0:02:01.1]}
22... Nc6 {[%clk 0:01:44.5]} 23. Bg3 {[%clk 0:01:48.9]} 23... f6 {[%clk
0:01:17.9]} 24. exf6 {[%clk 0:01:08.4]} 24... Rxf6 {[%clk 0:01:17.2]} 25. Rad1
{[%clk 0:01:08.8]} 25... Rcf8 {[%clk 0:01:10.7]} 26. Qg2 {[%clk 0:00:51.5]}
26... exf5 {[%clk 0:01:09.3]} 27. g5 {[%clk 0:00:47.1]} 27... Rg6 {[%clk
0:01:03]} 28. h4 {[%clk 0:00:41]} 28... f4 {[%clk 0:00:49]} 29. Bf2 {[%clk
0:00:39.5]} 29... f3 {[%clk 0:00:44.7]} 30. Qg3 {[%clk 0:00:34.4]} 30... Rf4
{[%clk 0:00:44.4]} 31. Bd4 {[%clk 0:00:30.5]} 31... Rf8 {[%clk 0:00:16.9]} 32.
h5 {[%clk 0:00:20.3]} 32... Re6 {[%clk 0:00:14.3]} 33. Rxf3 {[%clk 0:00:20.3]}
33... Rxf3 {[%clk 0:00:12.5]} 34. Qxf3 {[%clk 0:00:20.5]} 34... Qe2 {[%clk
0:00:11.6]} 35. Qxe2 {[%clk 0:00:11.7]} 35... Rxe2 {[%clk 0:00:11.4]} 36. b4
{[%clk 0:00:11.2]} 36... Re4 {[%clk 0:00:10.9]} 37. Rd2 {[%clk 0:00:03.3]} 37...
Nxd4 {[%clk 0:00:07.2]} 38. Rxd4 {[%clk 0:00:03.4]} 38... Re5 {[%clk 0:00:03.7]}
39. Rg4 {[%clk 0:00:02.3]} 39... Kf7 {[%clk 0:00:04]} 40. Kg2 {[%clk 0:00:01.4]}
40... g6 {[%clk 0:00:04]} 41. h6 {[%clk 0:00:01]} 41... Ke6 {[%clk 0:00:04.3]}
0-1